fUSD/lending_fUSD_20260207
["ID","MTS","AMOUNT","RATE_DAILY","PERIOD"]
[404728668,1770497442084,-500.0,0.00017808,2]
[404728669,1770497442094,-500.0,0.00017808,2]
[404728670,1770497442104,-500.0,0.00017808,2]
[404728671,1770497442113,-500.0,0.00017808,2]
[404728672,1770497442123,-500.0,0.00017808,2]
[404728673,1770497442132,-499.99999999,0.00017808,2]
[404728674,1770497442140,-1137.2649,0.00017812,2]
[404728675,1770497442147,-9071.026,0.00017812,2]
[404728676,1770497442156,-1183.45,0.00018154,2]
[404728677,1770497442164,-221.43856688,0.00018171,2]
[404728678,1770497442173,-200.0,0.00018319,2]
[404728679,1770497442183,-161.16,0.00018637,2]
[404728680,1770497442192,-1152.0,0.00018795,2]
[404728681,1770497442209,-766.15370913,0.0001881,3]
[404728682,1770497442221,-189.24,0.00018867,2]
[404728683,1770497442231,-600.0,0.000189,3]
[404728684,1770497442242,-3283.18932825,0.00018975,2]
[404728685,1770497442253,-3160.6604335,0.00018975,2]
[404728686,1770497442262,-1183.45,0.00018979,2]
[404728687,1770497442271,-2597.05443863,0.00019271,2]
[404728688,1770497442281,-1649.30792219,0.00019283,2]
[404728689,1770497442291,-274.8846537,0.00019456,2]
[404728690,1770497442300,-274.8846537,0.00019649,2]
[404728691,1770497442310,-1183.45,0.00019804,2]
[404728692,1770497442321,-274.8846537,0.00019842,2]
[404728693,1770497442331,-400.0,0.0001997,2]
[404728694,1770497442340,-550.0,0.0001997,2]
[404728695,1770497442350,-272.3259299,0.0002,20]
[404728696,1770497442360,-1000.0,0.00020293,7]
[404728697,1770497442369,-426.0,0.00020612,2]
[404728698,1770497442377,-400.0,0.0002087,2]
[404728699,1770497442386,-400.0,0.0002087,2]
[404728700,1770497442396,-277.35679052,0.00021242,2]
[404728701,1770497442406,-287.61899177,0.0002179,2]
[404728702,1770497442415,-1845.42144061,0.00021797,2]
[404728703,1770497442425,-2023.30573995,0.00021917,2]
[404728704,1770497442434,-5000.0,0.00021918,2]
[404728705,1770497442443,-500.0,0.00021918,2]
[404728706,1770497442453,-500.0,0.00021918,2]
[404728707,1770497442463,-500.0,0.00021918,2]
[404728708,1770497442472,-500.0,0.00021918,2]
[404728709,1770497442482,-500.0,0.00021918,2]
[404728710,1770497442491,-500.0,0.00021918,2]
[404728711,1770497442500,-500.0,0.00021918,2]
[404728712,1770497442510,-500.0,0.00021918,2]
[404728714,1770497442520,-500.0,0.00021918,2]
[404728716,1770497442530,-500.0,0.00021918,2]
[404728717,1770497442541,-500.0,0.00021918,2]
[404728719,1770497442551,-500.0,0.00021918,2]
[404728720,1770497442560,-500.0,0.00021918,2]
[404728721,1770497442569,-271.48449408,0.00021918,2]
[404728722,1770497442579,-500.0,0.00021918,2]
[404728723,1770497442589,-500.0,0.00021918,2]
[404728724,1770497442599,-500.0,0.00021918,2]
[404728725,1770497442609,-500.0,0.00021918,2]
[404728726,1770497442619,-500.0,0.00021918,2]
[404728727,1770497442630,-500.0,0.00021918,2]
[404728728,1770497442640,-500.0,0.00021918,2]
[404728729,1770497442650,-500.0,0.00021918,2]
[404728730,1770497442659,-500.0,0.00021918,2]
[404728731,1770497442669,-500.0,0.00021918,2]
[404728732,1770497442681,-500.0,0.00021918,2]
[404728733,1770497442690,-500.0,0.00021918,2]
[404728734,1770497442702,-500.0,0.00021918,2]
[404728735,1770497442713,-500.0,0.00021918,2]
[404728736,1770497442723,-500.0,0.00021918,2]
[404728737,1770497442734,-500.0,0.00021918,2]
[404728738,1770497442743,-500.0,0.00021918,2]
[404728739,1770497442754,-500.0,0.00021918,2]
[404728740,1770497442763,-500.0,0.00021918,2]
[404728741,1770497442772,-500.0,0.00021918,2]
[404728742,1770497442783,-500.0,0.00021918,2]
[404728743,1770497442793,-500.0,0.00021918,2]
[404728744,1770497442803,-500.0,0.00021918,2]
[404728745,1770497442814,-500.0,0.00021918,2]
[404728746,1770497442825,-500.0,0.00021918,2]
[404728747,1770497442834,-500.0,0.00021918,2]
[404728748,1770497442843,-500.0,0.00021918,2]
[404728749,1770497442851,-500.0,0.00021918,2]
[404728750,1770497442859,-500.0,0.00021918,2]
[404728751,1770497442869,-500.0,0.00021918,2]
[404728752,1770497442877,-500.0,0.00021918,2]
[404728753,1770497442886,-500.0,0.00021918,2]
[404728754,1770497442895,-500.0,0.00021918,2]
[404728755,1770497442906,-399.99999999,0.00021918,2]
[404728756,1770497442916,-500.0,0.00021918,2]
[404728757,1770497442925,-500.0,0.00021918,2]
[404728758,1770497442936,-500.0,0.00021918,2]
[404728759,1770497442947,-500.0,0.00021918,2]
[404728760,1770497442957,-500.0,0.00021918,2]
[404728761,1770497442967,-3283.18932825,0.00021965,2]
[404728762,1770497442978,-3160.6604335,0.00021965,2]
[404728763,1770497442987,-3202.59,0.00022,7]
[404728767,1770497443217,-15318.27,0.00022,2]
[404728768,1770497443228,-298.26089446,0.00022338,2]
[404728769,1770497443238,-2597.05443863,0.00022343,2]
[404728770,1770497443252,-500.0,0.0002246,2]
[404728771,1770497443262,-511.65883454,0.0002246,2]
[404728772,1770497443273,-500.0,0.0002246,2]
[404728773,1770497443284,-500.0,0.0002246,2]
[404728774,1770497443295,-500.0,0.0002246,2]
[404728775,1770497443307,-500.0,0.0002246,2]
[404728776,1770497443319,-506.98515424,0.0002246,2]
[404728777,1770497443329,-500.0,0.0002246,2]
[404728778,1770497443339,-500.0,0.0002246,2]
[404728779,1770497443350,-500.0,0.0002246,2]
[404728780,1770497443360,-500.0,0.0002246,2]
[404728781,1770497443370,-500.0,0.0002246,2]
[404728782,1770497443380,-506.90768866,0.0002246,2]
[404728783,1770497443390,-510.4331516,0.0002246,2]
[404728784,1770497443399,-500.0,0.0002246,2]
[404728785,1770497443409,-500.0,0.0002246,2]
[404728786,1770497443419,-160.92297488,0.0002246,2]
[404728787,1770497443438,-500.0,0.0002246,2]
[404728788,1770497443447,-500.0,0.0002246,2]
[404728789,1770497443456,-500.0,0.0002246,2]
[404728790,1770497443465,-500.0,0.0002246,2]
[404728792,1770497443474,-500.0,0.0002246,2]
[404728794,1770497443482,-500.0,0.0002246,2]
[404728795,1770497443491,-387.32253792,0.0002246,2]
[404728796,1770497443500,-500.0,0.0002246,2]
[404728798,1770497443510,-500.0,0.0002246,2]
[404728800,1770497443520,-500.0,0.0002246,2]
[404728801,1770497443529,-500.0,0.0002246,2]
[404728802,1770497443538,-509.2963147,0.0002246,2]
[404728803,1770497443548,-150.0,0.0002246,2]
[404728804,1770497443558,-342.00264161,0.0002281,2]
[404728806,1770497443566,-309.29654756,0.00022886,2]
[404728807,1770497443577,-156.16432723,0.00022931,2]
[404728808,1770497443587,-160.0,0.00023,2]
[404728809,1770497443597,-267.60703924,0.00023008,2]
[404728810,1770497443607,-408.8446401,0.00023008,2]
[404728811,1770497443617,-1000.0,0.00023008,2]
[404728812,1770497443626,-1000.0,0.00023008,2]
[404728813,1770497443635,-1000.0,0.00023008,2]
[404728814,1770497443644,-1000.0,0.00023008,2]
[404728815,1770497443654,-1000.0,0.00023008,2]
[404728816,1770497443663,-1000.0,0.00023008,2]
[404728817,1770497443673,-1000.0,0.00023008,2]
[404728818,1770497443684,-1000.0,0.00023008,2]
[404728819,1770497443693,-956.19349362,0.00023008,2]
[404728820,1770497443702,-1000.0,0.00023008,2]
[404728821,1770497443712,-1000.0,0.00023008,2]
[404728822,1770497443721,-1000.0,0.00023008,2]
[404728823,1770497443730,-1000.0,0.00023008,2]
[404728824,1770497443739,-1000.0,0.00023008,2]
[404728825,1770497443749,-1000.0,0.00023008,2]
[404728826,1770497443758,-1000.0,0.00023008,2]
[404728827,1770497443767,-1000.0,0.00023008,2]
[404728828,1770497443776,-1000.0,0.00023008,2]
[404728829,1770497443786,-1000.0,0.00023008,2]
[404728830,1770497443795,-626.50935226,0.00023008,2]
[404728831,1770497443805,-250.11398482,0.00023008,2]
[404728832,1770497443815,-221.43856688,0.00023347,2]
[404728833,1770497443824,-320.74051982,0.00023434,2]
[404728834,1770497443834,-1500.0,0.00023556,2]
[404728835,1770497443843,-1500.0,0.00023556,2]
[404728836,1770497443854,-1500.0,0.00023556,2]
[404728837,1770497443863,-1500.0,0.00023556,2]
[404728838,1770497443873,-1500.0,0.00023556,2]
[404728839,1770497443883,-1504.2260666,0.00023556,2]
[404728840,1770497443892,-908.89576694,0.00023556,2]
[404728841,1770497443901,-1500.0,0.00023556,2]
[404728842,1770497443911,-1500.0,0.00023556,2]
[404728843,1770497443920,-1500.0,0.00023556,2]
[404728844,1770497443929,-1500.0,0.00023556,2]
[404728845,1770497443939,-1500.0,0.00023556,2]
[404728846,1770497443948,-1500.0,0.00023556,2]
[404728847,1770497443957,-1500.0,0.00023556,2]
[404728848,1770497443966,-1500.0,0.00023556,2]
[404728849,1770497443976,-1500.0,0.00023556,2]
[404728850,1770497443986,-1500.0,0.00023556,2]
[404728851,1770497443995,-1500.0,0.00023556,2]
[404728852,1770497444005,-500.0,0.00023589,2]
[404728853,1770497444014,-20000.0,0.0002359,2]
[404728854,1770497444023,-2597.05443863,0.00023879,2]
[404728855,1770497444032,-308.5436198,0.00023933,2]
[404728856,1770497444042,-332.60791905,0.00023982,2]
[404728857,1770497444052,-362.57654928,0.00024071,2]
[404728858,1770497444062,-2000.0,0.00024104,2]
[404728859,1770497444071,-1990.99013013,0.00024104,2]
[404728860,1770497444081,-2000.0,0.00024104,2]
[404728861,1770497444090,-2000.0,0.00024104,2]
[404728862,1770497444100,-589.95947915,0.00024104,2]
[404728863,1770497444109,-2000.0,0.00024104,2]
[404728864,1770497444120,-2000.0,0.00024104,2]
[404728865,1770497444131,-2000.0,0.00024104,2]
[404728866,1770497444140,-692.37886657,0.00024104,2]
[404728867,1770497444150,-1222.56300425,0.00024104,2]
[404728868,1770497444159,-2000.0,0.00024104,2]
[404728869,1770497444170,-2000.0,0.00024104,2]
[404728870,1770497444179,-2000.0,0.00024104,2]
[404728871,1770497444190,-477.38277676,0.00024104,2]
[404728872,1770497444199,-2000.0,0.00024104,2]
[404728873,1770497444210,-2149.51215349,0.00024104,2]
[404728874,1770497444220,-5008.15573244,0.00024286,2]
[404728875,1770497444229,-5000.0,0.00024286,2]
[404728876,1770497444239,-5000.0,0.00024286,2]
[404728877,1770497444251,-5000.0,0.00024286,2]
[404728878,1770497444261,-5000.0,0.00024286,2]
[404728879,1770497444270,-156.16432723,0.00024364,2]
[404728880,1770497444280,-344.91441206,0.0002453,2]
[404728881,1770497444291,-2474.46,0.0002458,2]
[404728882,1770497444300,-2210.92986901,0.00024652,2]
[404728883,1770497444310,-2500.0,0.00024652,2]
[404728884,1770497444322,-2500.0,0.00024652,2]
[404728885,1770497444331,-1011.53035871,0.00024652,2]
[404728886,1770497444341,-289.68,0.00024658,2]
[404728887,1770497444351,-1000.0,0.00024658,2]
[404728888,1770497444360,-15318.27,0.000247,2]
[404728889,1770497444369,-3349.22423772,0.00024737,2]
[404728890,1770497444379,-3202.59,0.000248,7]
[404728891,1770497444388,-3283.18932825,0.00024954,2]
[404728892,1770497444398,-3160.6604335,0.00024954,2]
[404728893,1770497444408,-357.6762453,0.00025078,2]
[404728894,1770497444418,-3000.0,0.000252,2]
[404728895,1770497444427,-3000.0,0.000252,2]
[404728896,1770497444436,-2597.05443863,0.00025415,2]
[404728897,1770497444446,-370.91026638,0.00025626,2]
[404728898,1770497444456,-3500.0,0.00025748,2]
[404728899,1770497444466,-869.28825225,0.00025748,2]
[404728900,1770497444475,-156.16432723,0.00025797,2]
[404728901,1770497444485,-204.49,0.00025849,2]
[404728902,1770497444495,-384.63394623,0.00026174,2]
[404728903,1770497444504,-1845.42144061,0.00026247,2]
[404728904,1770497444514,-1193.76418737,0.00026296,2]
[404728905,1770497444524,-398.86540225,0.00026722,2]
[404728906,1770497444534,-2597.05443863,0.00026951,2]
[404728907,1770497444543,-156.16432723,0.0002723,2]
[404728908,1770497444553,-289.68,0.00027397,2]
[404728909,1770497444562,-180.23086787,0.00027613,2]
[404728910,1770497444571,-15318.27,0.000277,2]
[404728911,1770497444581,-3283.18932825,0.00027943,2]
[404728912,1770497444591,-3160.6604335,0.00027943,2]
[404728913,1770497444600,-161.16,0.00028134,2]
[404728914,1770497444610,-189.24,0.00028452,2]
[404728915,1770497444619,-3066.63849593,0.00028472,2]
[404728916,1770497444628,-2597.05443863,0.00028486,2]
[404728917,1770497444638,-221.43856688,0.00028522,2]
[404728918,1770497444647,-156.16432723,0.00028663,2]
[404728919,1770497444657,-3202.59,0.000296,7]
[404728920,1770497444666,-9039.0,0.0003,2]
[404728921,1770497444675,-2597.05443863,0.00030022,2]
[404728922,1770497444685,-156.16432723,0.00030097,2]
[404728923,1770497444695,-289.68,0.00030137,2]
[404728924,1770497444704,-5530.0,0.000305,3]
[404728925,1770497444713,-1845.42144061,0.00030697,2]
[404728926,1770497444723,-3283.18932825,0.00030932,2]
[404728927,1770497444732,-3160.6604335,0.00030932,2]
[404728928,1770497444742,-5530.0,0.00031,5]
[404728929,1770497444751,-9558.0,0.00031094,5]
[404728930,1770497444760,-487.0,0.00031094,2]
[404728931,1770497444770,-487.0,0.00031094,2]
[404728932,1770497444780,-487.0,0.00031094,2]
[404728933,1770497444790,-487.0,0.00031094,2]
[404728934,1770497444799,-487.0,0.00031094,2]
[404728935,1770497444811,-487.0,0.00031094,2]
[404728936,1770497444821,-487.0,0.00031094,2]
[404728937,1770497444831,-487.0,0.00031094,2]
[404728938,1770497444840,-487.0,0.00031094,2]
[404728939,1770497444851,-487.0,0.00031094,2]
[404728940,1770497444860,-664.29,0.00031094,2]
[404728941,1770497444870,-156.16432723,0.0003153,2]
[404728942,1770497444879,-2597.05443863,0.00031558,2]
[404728943,1770497444888,-15318.27,0.000317,2]
[404728944,1770497444897,-161.16,0.00031988,2]
[404728945,1770497444906,-189.24,0.00032167,2]
[404728946,1770497444917,-3202.59,0.000326,7]
[404728947,1770497444927,-507.0,0.00032616,2]
[404728948,1770497444939,-289.68,0.00032877,2]
[404728949,1770497444950,-1450.96,0.000329,2]
[404728950,1770497444961,-156.16432723,0.00032963,2]
[404728951,1770497444971,-165.0,0.00033,14]
[404728952,1770497444981,-2597.05443863,0.00033094,2]
[404728953,1770497444991,-221.43856688,0.00033697,2]
[404728954,1770497445001,-507.0,0.00033718,3]
[404728955,1770497445010,-152.15,0.000338,14]
[404728956,1770497445020,-150.0,0.00033873,5]
[404728957,1770497445030,-150.0,0.00033873,5]
[404728958,1770497445039,-150.0,0.00033873,5]
[404728959,1770497445048,-3283.18932825,0.00033922,2]
[404728960,1770497445057,-3160.6604335,0.00033922,2]
[404728961,1770497445067,-5000.0,0.00034286,2]
[404728962,1770497445075,-5000.0,0.00034286,2]
[404728963,1770497445084,-156.16432726,0.00034396,2]
[404728964,1770497445094,-250.0,0.00034421,5]
[404728965,1770497445103,-250.0,0.00034421,5]
[404728966,1770497445113,-250.0,0.00034421,5]
[404728967,1770497445122,-151.0,0.00034445,14]
[404728968,1770497445131,-150.0,0.00034447,20]
[404728969,1770497445140,-1712.0,0.00034454,2]
[404728970,1770497445149,-1341.461,0.0003461,2]
[404728971,1770497445159,-1555.808,0.0003461,2]
[404728972,1770497445168,-3483.0,0.0003461,2]
[404728973,1770497445177,-616.0,0.0003461,2]
[404728974,1770497445186,-251.149,0.0003461,2]
[404728975,1770497445195,-1273.706,0.0003461,2]
[404728976,1770497445204,-917.837,0.0003461,2]
[404728977,1770497445214,-1206.0,0.0003461,2]
[404728978,1770497445223,-412.0,0.0003461,2]
[404728979,1770497445232,-3255.636,0.0003461,2]
[404728980,1770497445245,-6584.0,0.0003461,2]
[404728981,1770497445256,-2597.05443863,0.0003463,2]
[404728982,1770497445266,-507.0,0.0003482,4]
[404728983,1770497445276,-150.0,0.00034904,2]
[404728984,1770497445287,-350.0,0.00034968,5]
[404728985,1770497445297,-350.0,0.00034968,5]
[404728986,1770497445306,-350.0,0.00034968,5]
[404728987,1770497445318,-1845.42144061,0.00035147,2]
[404728988,1770497445327,-1450.96,0.000353,2]
[404728989,1770497445337,-1711.0,0.00035428,7]
[404728990,1770497445347,-450.0,0.00035516,5]
[404728991,1770497445356,-494.49066866,0.00035516,5]
[404728992,1770497445366,-441.40961792,0.00035516,5]
[404728993,1770497445375,-150.0,0.00035562,7]
[404728994,1770497445384,-150.0,0.00035562,7]
[404728995,1770497445394,-150.0,0.00035562,7]
[404728996,1770497445403,-150.0,0.00035562,7]
[404728997,1770497445413,-1711.0,0.00035563,2]
[404728998,1770497445422,-500.0,0.00035589,5]
[404728999,1770497445432,-150.0,0.00035607,7]
[404729000,1770497445442,-200.0,0.00035616,2]
[404729001,1770497445451,-454.38660406,0.00035616,7]
[404729002,1770497445460,-289.68,0.00035616,2]
[404729003,1770497445469,-150.0,0.00035653,7]
[404729004,1770497445479,-150.0,0.00035671,4]
[404729005,1770497445488,-150.0,0.00035671,4]
[404729006,1770497445497,-150.0,0.00035671,4]
[404729007,1770497445507,-150.0,0.00035671,4]
[404729008,1770497445516,-300.0,0.00035673,5]
[404729009,1770497445525,-150.0,0.00035673,5]
[404729010,1770497445535,-150.0,0.00035683,4]
[404729011,1770497445544,-150.0,0.00035695,4]
[404729012,1770497445553,-150.0,0.00035699,7]
[404729013,1770497445563,-160.0,0.000357,7]
[404729014,1770497445572,-150.0,0.00035706,4]
[404729015,1770497445628,-150.0,0.00035718,4]
[404729016,1770497445637,-150.0,0.0003573,4]
[404729017,1770497445646,-151.0,0.0003574,2]
[404729018,1770497445655,-300.0,0.0003574,4]
[404729019,1770497445665,-300.0,0.0003574,4]
[404729020,1770497445674,-300.0,0.0003574,4]
[404729021,1770497445682,-150.0,0.00035742,4]
[404729022,1770497445691,-150.0,0.00035743,2]
[404729023,1770497445701,-150.0,0.00035744,7]
[404729024,1770497445710,-150.0,0.00035746,2]
[404729025,1770497445719,-150.0,0.00035749,2]
[404729026,1770497445728,-150.0,0.00035752,2]
[404729027,1770497445737,-150.0,0.00035753,4]
[404729028,1770497445746,-150.0,0.00035755,2]
[404729029,1770497445755,-150.0,0.00035758,2]
[404729030,1770497445764,-150.0,0.00035761,2]
[404729031,1770497445774,-150.0,0.00035764,2]
[404729032,1770497445784,-150.0,0.00035765,4]
[404729033,1770497445795,-150.0,0.00035767,2]
[404729034,1770497445806,-150.0,0.0003577,2]
[404729035,1770497445816,-150.0,0.00035773,2]
[404729036,1770497445827,-150.0,0.00035776,2]
[404729037,1770497445837,-150.0,0.00035777,4]
[404729038,1770497445848,-150.0,0.00035779,2]
[404729039,1770497445856,-150.0,0.00035789,4]
[404729040,1770497445866,-150.0,0.0003579,7]
[404729041,1770497445875,-150.0,0.00035795,4]
[404729042,1770497445885,-150.0,0.00035795,4]
[404729043,1770497445895,-150.0,0.00035795,4]
[404729044,1770497445905,-150.0,0.000358,4]
[404729045,1770497445914,-150.0,0.00035812,4]
[404729046,1770497445923,-150.0,0.00035824,4]
[404729047,1770497445932,-150.0,0.00035836,4]
[404729048,1770497445941,-150.0,0.00035836,7]
[404729049,1770497445950,-150.0,0.00035836,6]
[404729050,1770497445959,-150.0,0.00035836,6]
[404729051,1770497445969,-150.0,0.00035836,6]
[404729052,1770497445979,-150.0,0.00035837,2]
[404729053,1770497445989,-150.0,0.0003584,2]
[404729054,1770497445999,-150.0,0.00035843,2]
[404729055,1770497446008,-150.0,0.00035846,2]
[404729056,1770497446017,-150.0,0.00035847,4]
[404729057,1770497446026,-278.0,0.00035849,2]
[404729058,1770497446035,-150.0,0.00035859,4]
[404729059,1770497446044,-1000.0,0.00035863,5]
[404729060,1770497446053,-150.0,0.00035871,4]
[404729061,1770497446062,-150.0,0.00035881,7]
[404729062,1770497446071,-150.0,0.00035883,4]
[404729063,1770497446080,-150.0,0.00035894,4]
[404729064,1770497446088,-2000.0,0.000359,2]
[404729065,1770497446097,-150.0,0.00035906,4]
[404729066,1770497446106,-214.89,0.00035916,2]
[404729067,1770497446115,-150.0,0.00035918,4]
[404729068,1770497446124,-507.0,0.00035922,6]
[404729069,1770497446133,-150.0,0.00035927,7]
[404729070,1770497446143,-150.0,0.0003593,4]
[404729071,1770497446152,-150.0,0.00035941,4]
[404729072,1770497446161,-150.0,0.00035953,5]
[404729073,1770497446170,-150.0,0.00035965,5]
[404729074,1770497446179,-400.0,0.0003597,2]
[404729075,1770497446188,-200.0,0.00035972,2]
[404729077,1770497446198,-150.0,0.00035973,7]
[404729079,1770497446207,-150.0,0.00035977,5]
[404729080,1770497446216,-150.0,0.00035988,5]
[404729081,1770497446226,-522.6,0.00036,30]
[404729082,1770497446236,-216.0,0.00036,5]
[404729083,1770497446249,-150.0,0.00036018,7]
[404729084,1770497446258,-252.33,0.00036019,2]
[404729085,1770497446269,-150.0,0.00036064,8]
[404729086,1770497446279,-550.0,0.00036064,5]
[404729087,1770497446290,-150.0,0.0003611,10]
[404729088,1770497446300,-1500.0,0.00036137,5]
[404729089,1770497446310,-150.0,0.00036155,11]
[404729090,1770497446320,-2597.05443863,0.00036165,2]
[404729091,1770497446331,-150.0,0.00036201,11]
[404729092,1770497446340,-2605.671,0.00036201,44]
[404729093,1770497446350,-199.408,0.00036201,44]
[404729094,1770497446360,-708.80161609,0.00036221,5]
[404729095,1770497446369,-250.0,0.00036221,5]
[404729096,1770497446378,-273.0,0.00036247,12]
[404729097,1770497446388,-200.0,0.00036332,2]
[404729098,1770497446398,-500.00000009,0.00036411,5]
[404729099,1770497446407,-1711.0,0.00036439,2]
[404729100,1770497446416,-650.0,0.00036612,5]
[404729101,1770497446426,-150.0,0.00036649,2]
[404729102,1770497446435,-1711.0,0.00036678,2]
[404729103,1770497446445,-1711.0,0.00036708,120]
[404729104,1770497446454,-522.6,0.0003672,30]
[404729105,1770497446464,-350.0,0.00036768,5]
[404729106,1770497446473,-300.080448,0.000368,81]
[404729107,1770497446482,-466.6214,0.00036888,7]
[404729108,1770497446491,-3283.18932825,0.00036911,2]
[404729109,1770497446500,-3160.6604335,0.00036911,2]
[404729111,1770497446509,-1711.0,0.00036929,7]
[404729113,1770497446518,-507.0,0.00037024,7]
[404729114,1770497446527,-747.56629257,0.0003716,5]
[404729115,1770497446536,-185.51510201,0.000372,120]
[404729116,1770497446546,-185.51510198,0.000372,120]
[404729117,1770497446555,-185.51510198,0.000372,120]
[404729118,1770497446566,-185.51510198,0.000372,120]
[404729119,1770497446576,-152.0,0.00037215,3]
[404729120,1770497446586,-1710.0,0.00037272,7]
[404729121,1770497446595,-450.0,0.00037316,5]
[404729122,1770497446605,-522.6,0.0003744,30]
[404729123,1770497446614,-1710.0,0.00037455,2]
[404729124,1770497446625,-238.86,0.00037578,2]
[404729125,1770497446636,-1710.0,0.00037583,7]
[404729126,1770497446646,-1335.0,0.0003761,2]
[404729127,1770497446657,-1411.0,0.0003761,2]
[404729128,1770497446666,-3483.0,0.0003761,2]
[404729129,1770497446675,-616.0,0.0003761,2]
[404729130,1770497446684,-1272.0,0.0003761,2]
[404729131,1770497446694,-917.0,0.0003761,2]
[404729132,1770497446704,-1206.0,0.0003761,2]
[404729133,1770497446713,-412.0,0.0003761,2]
[404729134,1770497446722,-3255.0,0.0003761,2]
[404729135,1770497446731,-6584.0,0.0003761,2]
[404729136,1770497446740,-1710.0,0.0003764,2]
[404729137,1770497446749,-2597.05443863,0.00037701,2]
[404729138,1770497446758,-1710.0,0.00037715,2]
[404729139,1770497446768,-1450.96,0.000379,2]
[404729140,1770497446778,-3074.0,0.00038068,7]
[404729141,1770497446789,-15318.28,0.000381,2]
[404729142,1770497446800,-15318.27,0.000381,2]
[404729143,1770497446809,-507.0,0.00038126,8]
[404729144,1770497446821,-1710.0,0.00038254,120]
[404729145,1770497446831,-1710.0,0.00038292,2]
[404729146,1770497446841,-152.15,0.000383,14]
[404729147,1770497446850,-3074.0,0.00038305,2]
[404729148,1770497446859,-1710.0,0.00038314,2]
[404729149,1770497446869,-1710.0,0.00038323,7]
[404729150,1770497446878,-276.59215114,0.00038356,120]
[404729151,1770497446888,-1710.0,0.00038394,7]
[404729152,1770497446898,-3202.58,0.000384,14]
[404729153,1770497446908,-150.0,0.00038482,2]
[404729154,1770497446920,-3202.59,0.000385,14]
[404729155,1770497446931,-1710.0,0.00038517,2]
[404729156,1770497446940,-1710.0,0.00038555,2]
[404729157,1770497446948,-221.43856688,0.00038873,2]
[404729158,1770497446955,-4199.5928,0.00038888,30]
[404729159,1770497446963,-500.0,0.00038905,2]
[404729160,1770497446971,-150.0,0.00038905,2]
[404729161,1770497446979,-194.03688759,0.00038905,2]
[404729162,1770497446987,-205.83867613,0.00038905,2]
[404729163,1770497446995,-500.0,0.00038905,2]
[404729164,1770497447003,-500.0,0.00038905,2]
[404729165,1770497447013,-150.0,0.00038905,2]
[404729166,1770497447025,-500.0,0.00038905,2]
[404729167,1770497447036,-290.89734968,0.00038905,2]
[404729168,1770497447046,-200.0,0.00038905,2]
[404729169,1770497447056,-150.0,0.00038905,2]
[404729170,1770497447066,-500.0,0.00038905,2]
[404729171,1770497447076,-150.0,0.00038905,2]
[404729172,1770497447087,-500.0,0.00038905,2]
[404729173,1770497447097,-150.0,0.00038905,2]
[404729174,1770497447107,-500.0,0.00038905,2]
[404729175,1770497447117,-150.0,0.00038905,2]
[404729176,1770497447128,-192.17460847,0.00038905,2]
[404729177,1770497447138,-500.0,0.00038905,2]
[404729178,1770497447147,-500.0,0.00038905,2]
[404729179,1770497447157,-500.0,0.00038905,2]
[404729180,1770497447165,-500.0,0.00038905,2]
[404729181,1770497447174,-500.0,0.00038905,2]
[404729182,1770497447182,-242.23208767,0.00038905,2]